fUST/lending_fUST_20250723
["ID","MTS","AMOUNT","RATE_DAILY","PERIOD"]
[374161288,1753233048808,-460.0,0.0001953,2]
[374161289,1753233048817,-1070.76,0.0001953,2]
[374161290,1753233048827,-460.0,0.0001953,2]
[374161291,1753233048836,-460.0,0.0001953,2]
[374161292,1753233048846,-346.83,0.0001953,2]
[374161293,1753233048855,-460.0,0.0001953,2]
[374161294,1753233048865,-639.35,0.0001953,2]
[374161295,1753233048875,-536.85,0.0001953,2]
[374161296,1753233048884,-460.0,0.0001953,2]
[374161297,1753233048894,-675.06,0.0001953,2]
[374161298,1753233048904,-460.0,0.0001953,2]
[374161299,1753233048914,-461.71,0.0001953,2]
[374161300,1753233048923,-477.97,0.0001953,2]
[374161301,1753233048933,-253.32,0.0001953,2]
[374161302,1753233048943,-460.0,0.0001953,2]
[374161303,1753233048953,-2071.61540842,0.00019537,2]
[374161304,1753233048963,-2246.89872723,0.00019555,2]
[374161305,1753233048973,-360.0,0.00019728,2]
[374161306,1753233048983,-857.45,0.000198,2]
[374161307,1753233048993,-1007.79,0.000198,2]
[374161308,1753233049003,-1306.39,0.000198,2]
[374161309,1753233049013,-1097.55,0.000198,2]
[374161310,1753233049023,-289.91,0.000198,2]
[374161311,1753233049034,-460.0,0.000198,2]
[374161312,1753233049045,-460.0,0.00019801,2]
[374161313,1753233049056,-500.0,0.00019801,2]
[374161314,1753233049065,-460.0,0.00019801,2]
[374161315,1753233049075,-2089.16,0.00019802,2]
[374161316,1753233049085,-1008.07,0.00019802,2]
[374161317,1753233049095,-774.97,0.00019802,2]
[374161318,1753233049105,-1434.22,0.00019802,2]
[374161319,1753233049115,-1865.85,0.00019802,2]
[374161320,1753233049125,-2977.13,0.00019804,2]
[374161321,1753233049135,-460.0,0.00019804,2]
[374161322,1753233049145,-1070.76,0.00019804,2]
[374161323,1753233049155,-254.17,0.00019804,2]
[374161324,1753233049165,-460.0,0.00019804,2]
[374161325,1753233049174,-194.07,0.00019804,2]
[374161326,1753233049183,-639.35,0.00019804,2]
[374161327,1753233049193,-536.85,0.00019804,2]
[374161328,1753233049202,-460.0,0.00019804,2]
[374161329,1753233049212,-675.06,0.00019804,2]
[374161330,1753233049222,-460.0,0.00019804,2]
[374161331,1753233049232,-461.71,0.00019804,2]
[374161332,1753233049242,-477.97,0.00019804,2]
[374161333,1753233049251,-460.0,0.00019804,2]
[374161334,1753233049261,-2246.89872723,0.00019831,2]
[374161335,1753233049270,-1500.0,0.00019868,2]
[374161336,1753233049280,-1000.01310501,0.00019868,2]
[374161337,1753233049294,-973.57592756,0.00019868,2]
[374161338,1753233049304,-500.0,0.00019868,2]
[374161339,1753233049313,-370.23029843,0.00019868,2]
[374161340,1753233049326,-1500.0,0.00019868,2]
[374161341,1753233049336,-1500.0,0.00019868,2]
[374161342,1753233049346,-587.0,0.00020032,2]
[374161343,1753233049355,-857.45,0.00020074,2]
[374161344,1753233049364,-1007.79,0.00020074,2]
[374161345,1753233049374,-1306.39,0.00020074,2]
[374161346,1753233049384,-1097.55,0.00020074,2]
[374161347,1753233049394,-460.0,0.00020074,2]
[374161348,1753233049403,-487.05,0.00020075,2]
[374161349,1753233049412,-500.0,0.00020075,2]
[374161350,1753233049422,-460.0,0.00020075,2]
[374161351,1753233049432,-2089.16,0.00020076,2]
[374161352,1753233049442,-1008.07,0.00020076,2]
[374161353,1753233049451,-774.97,0.00020076,2]
[374161354,1753233049460,-1434.22,0.00020076,2]
[374161355,1753233049469,-1865.85,0.00020076,2]
[374161356,1753233049478,-2977.13,0.00020078,2]
[374161357,1753233049487,-460.0,0.00020078,2]
[374161358,1753233049496,-1070.76,0.00020078,2]
[374161359,1753233049506,-460.0,0.00020078,2]
[374161360,1753233049515,-639.35,0.00020078,2]
[374161361,1753233049525,-536.85,0.00020078,2]
[374161362,1753233049534,-460.0,0.00020078,2]
[374161363,1753233049543,-675.06,0.00020078,2]
[374161364,1753233049552,-460.0,0.00020078,2]
[374161365,1753233049561,-461.71,0.00020078,2]
[374161366,1753233049570,-477.97,0.00020078,2]
[374161367,1753233049580,-460.0,0.00020078,2]
[374161368,1753233049589,-2246.89872723,0.00020107,2]
[374161369,1753233049598,-639.600238,0.00020187,2]
[374161370,1753233049607,-460.0,0.00020276,2]
[374161371,1753233049616,-500.0,0.00020348,2]
[374161372,1753233049626,-857.45,0.00020348,2]
[374161373,1753233049638,-1007.79,0.00020348,2]
[374161374,1753233049647,-1306.39,0.00020348,2]
[374161375,1753233049656,-1097.55,0.00020348,2]
[374161376,1753233049665,-460.0,0.00020348,2]
[374161377,1753233049675,-460.0,0.00020349,2]
[374161378,1753233049684,-2089.16,0.0002035,2]
[374161379,1753233049789,-1008.07,0.0002035,2]
[374161380,1753233049799,-774.97,0.0002035,2]
[374161381,1753233049808,-1434.22,0.0002035,2]
[374161382,1753233049818,-1865.85,0.0002035,2]
[374161383,1753233049827,-2977.13,0.00020352,2]
[374161384,1753233049836,-588.38707441,0.00020352,2]
[374161385,1753233049845,-1070.76,0.00020352,2]
[374161386,1753233049854,-460.0,0.00020352,2]
[374161387,1753233049863,-639.35,0.00020352,2]
[374161388,1753233049872,-536.85,0.00020352,2]
[374161389,1753233049881,-460.0,0.00020352,2]
[374161390,1753233049891,-675.06,0.00020352,2]
[374161391,1753233049899,-460.0,0.00020352,2]
[374161392,1753233049909,-461.71,0.00020352,2]
[374161393,1753233049918,-477.97,0.00020352,2]
[374161394,1753233049928,-349.24906585,0.00020352,2]
[374161395,1753233049937,-610.25,0.00020354,2]
[374161396,1753233049946,-2246.89872723,0.00020383,3]
[374161397,1753233049955,-500.0,0.00020416,2]
[374161398,1753233049965,-1385.4992409,0.00020416,2]
[374161399,1753233049974,-151.0,0.000205,4]
[374161400,1753233049983,-822.089,0.00020622,2]
[374161401,1753233049994,-857.45,0.00020622,2]
[374161402,1753233050003,-1007.79,0.00020622,2]
[374161403,1753233050012,-1306.39,0.00020622,2]
[374161404,1753233050022,-1097.55,0.00020622,2]
[374161405,1753233050031,-460.0,0.00020622,2]
[374161406,1753233050041,-500.0,0.00020623,2]
[374161407,1753233050050,-460.0,0.00020623,2]
[374161408,1753233050059,-2089.16,0.00020624,2]
[374161409,1753233050068,-1008.07,0.00020624,2]
[374161410,1753233050078,-774.97,0.00020624,2]
[374161411,1753233050087,-1434.22,0.00020624,2]
[374161412,1753233050096,-1865.85,0.00020624,2]
[374161413,1753233050106,-2977.13,0.00020626,2]
[374161414,1753233050115,-1070.76,0.00020626,2]
[374161415,1753233050124,-460.0,0.00020626,2]
[374161416,1753233050133,-639.35,0.00020626,2]
[374161417,1753233050143,-536.85,0.00020626,2]
[374161418,1753233050153,-460.0,0.00020626,2]
[374161419,1753233050162,-675.06,0.00020626,2]
[374161420,1753233050171,-460.0,0.00020626,2]
[374161421,1753233050180,-461.71,0.00020626,2]
[374161422,1753233050189,-477.97,0.00020626,2]
[374161423,1753233050199,-5000.0,0.00020636,2]
[374161424,1753233050208,-2246.89872723,0.00020659,3]
[374161425,1753233050217,-560.0,0.00020824,2]
[374161426,1753233050226,-857.45,0.00020896,2]
[374161427,1753233050235,-1007.79,0.00020896,2]
[374161428,1753233050245,-1306.39,0.00020896,2]
[374161429,1753233050254,-1097.55,0.00020896,2]
[374161430,1753233050264,-460.0,0.00020896,2]
[374161431,1753233050274,-342.04,0.00020897,2]
[374161432,1753233050284,-2089.16,0.00020898,2]
[374161433,1753233050294,-1008.07,0.00020898,2]
[374161434,1753233050307,-774.97,0.00020898,2]
[374161435,1753233050316,-1434.22,0.00020898,2]
[374161436,1753233050326,-1865.85,0.00020898,2]
[374161437,1753233050336,-2977.13,0.000209,2]
[374161438,1753233050346,-1070.76,0.000209,2]
[374161439,1753233050355,-460.0,0.000209,2]
[374161440,1753233050365,-639.35,0.000209,2]
[374161441,1753233050374,-536.85,0.000209,2]
[374161442,1753233050383,-460.0,0.000209,2]
[374161443,1753233050392,-675.06,0.000209,2]
[374161444,1753233050401,-561.70542478,0.000209,2]
[374161445,1753233050411,-461.71,0.000209,2]
[374161446,1753233050420,-477.97,0.000209,2]
[374161447,1753233050430,-151.0,0.000209,3]
[374161448,1753233050439,-403.93459031,0.00020901,2]
[374161449,1753233050448,-2246.89872723,0.00020934,4]
[374161450,1753233050458,-857.45,0.0002117,2]
[374161451,1753233050467,-1007.79,0.0002117,2]
[374161452,1753233050475,-1306.39,0.0002117,2]
[374161453,1753233050485,-1097.55,0.0002117,2]
[374161454,1753233050494,-460.0,0.0002117,2]
[374161455,1753233050504,-2089.16,0.00021172,2]
[374161456,1753233050513,-1008.07,0.00021172,2]
[374161457,1753233050522,-774.97,0.00021172,2]
[374161458,1753233050531,-1434.22,0.00021172,2]
[374161459,1753233050541,-1865.85,0.00021172,2]
[374161460,1753233050550,-2977.13,0.00021174,2]
[374161461,1753233050559,-1070.76,0.00021174,2]
[374161462,1753233050568,-460.0,0.00021174,2]
[374161463,1753233050577,-639.35,0.00021174,2]
[374161464,1753233050587,-536.85,0.00021174,2]
[374161465,1753233050596,-460.0,0.00021174,2]
[374161466,1753233050605,-675.06,0.00021174,2]
[374161467,1753233050614,-461.71,0.00021174,2]
[374161468,1753233050623,-477.97,0.00021174,2]
[374161469,1753233050636,-2246.89872723,0.0002121,4]
[374161470,1753233050646,-5528.05944362,0.00021257,2]
[374161471,1753233050655,-2071.61540842,0.00021291,2]
[374161472,1753233050664,-660.0,0.00021372,2]
[374161473,1753233050674,-151.0,0.000214,4]
[374161474,1753233050686,-857.45,0.00021444,2]
[374161475,1753233050695,-1007.79,0.00021444,2]
[374161476,1753233050704,-1306.39,0.00021444,2]
[374161477,1753233050715,-1097.55,0.00021444,2]
[374161478,1753233050724,-603.3,0.00021444,2]
[374161479,1753233050734,-2089.16,0.00021446,2]
[374161480,1753233050743,-1008.07,0.00021446,2]
[374161481,1753233050752,-774.97,0.00021446,2]
[374161482,1753233050761,-1434.22,0.00021446,2]
[374161483,1753233050770,-1865.85,0.00021446,2]
[374161484,1753233050779,-2977.13,0.00021448,2]
[374161485,1753233050789,-1070.76,0.00021448,2]
[374161486,1753233050798,-460.0,0.00021448,2]
[374161487,1753233050808,-639.35,0.00021448,2]
[374161488,1753233050817,-536.85,0.00021448,2]
[374161489,1753233050826,-460.0,0.00021448,2]
[374161490,1753233050836,-675.06,0.00021448,2]
[374161491,1753233050845,-461.71,0.00021448,2]
[374161492,1753233050854,-477.97,0.00021448,2]
[374161493,1753233050864,-2246.89872723,0.00021486,5]
[374161494,1753233050873,-3000.0,0.000217,2]
[374161495,1753233050882,-3000.0,0.0002171,2]
[374161496,1753233050891,-857.45,0.00021718,2]
[374161497,1753233050900,-1007.79,0.00021718,2]
[374161498,1753233050910,-1306.39,0.00021718,2]
[374161499,1753233050919,-1097.55,0.00021718,2]
[374161500,1753233050929,-3000.0,0.0002172,2]
[374161501,1753233050938,-2089.16,0.0002172,2]
[374161502,1753233050947,-1008.07,0.0002172,2]
[374161503,1753233050956,-774.97,0.0002172,2]
[374161504,1753233050965,-1434.22,0.0002172,2]
[374161505,1753233050974,-1865.85,0.0002172,2]
[374161506,1753233050983,-2977.13,0.00021722,2]
[374161507,1753233050993,-1070.76,0.00021722,2]
[374161508,1753233051002,-460.0,0.00021722,2]
[374161509,1753233051011,-639.35,0.00021722,2]
[374161510,1753233051021,-536.85,0.00021722,2]
[374161511,1753233051031,-426.04076356,0.00021722,2]
[374161512,1753233051040,-675.06,0.00021722,2]
[374161513,1753233051050,-461.71,0.00021722,2]
[374161514,1753233051059,-477.97,0.00021722,2]
[374161515,1753233051071,-3000.0,0.0002173,2]
[374161516,1753233051082,-3000.0,0.0002174,2]
[374161517,1753233051092,-180.0342065,0.00021746,2]
[374161518,1753233051101,-3000.0,0.0002175,2]
[374161519,1753233051112,-3000.0,0.0002176,2]
[374161520,1753233051122,-2246.89872723,0.00021762,5]
[374161521,1753233051131,-3000.0,0.0002177,2]
[374161522,1753233051140,-3000.0,0.0002178,2]
[374161523,1753233051149,-3000.0,0.0002179,2]
[374161524,1753233051159,-3000.0,0.000218,2]
[374161525,1753233051168,-3000.0,0.0002181,2]
[374161526,1753233051178,-3000.0,0.0002182,2]
[374161527,1753233051187,-3000.0,0.0002183,2]
[374161528,1753233051197,-3000.0,0.0002184,2]
[374161529,1753233051206,-3000.0,0.0002185,2]
[374161530,1753233051216,-3000.0,0.0002186,2]
[374161531,1753233051225,-3000.0,0.0002187,2]
[374161532,1753233051234,-3000.0,0.0002188,2]
[374161533,1753233051243,-359.0,0.00021885,2]
[374161534,1753233051253,-3000.0,0.0002189,2]
[374161535,1753233051262,-3000.0,0.000219,2]
[374161536,1753233051271,-3000.0,0.0002191,2]
[374161537,1753233051280,-200.0,0.00021918,2]
[374161538,1753233051290,-3000.0,0.0002192,2]
[374161539,1753233051299,-340.0,0.0002192,2]
[374161540,1753233051309,-3000.0,0.0002193,2]
[374161541,1753233051318,-3000.0,0.0002194,2]
[374161542,1753233051328,-3000.0,0.0002195,2]
[374161543,1753233051337,-3000.0,0.0002196,2]
[374161544,1753233051347,-3000.0,0.0002197,2]
[374161545,1753233051356,-3000.0,0.0002198,2]
[374161546,1753233051366,-3000.0,0.0002199,2]
[374161547,1753233051375,-857.45,0.00021992,2]
[374161548,1753233051384,-1007.79,0.00021992,2]
[374161549,1753233051393,-1306.39,0.00021992,2]
[374161550,1753233051403,-1097.55,0.00021992,2]
[374161551,1753233051412,-585.0,0.00021993,2]
[374161552,1753233051422,-2089.16,0.00021994,2]
[374161553,1753233051431,-1008.07,0.00021994,2]
[374161554,1753233051440,-774.97,0.00021994,2]
[374161555,1753233051449,-1434.22,0.00021994,2]
[374161556,1753233051458,-1865.85,0.00021994,2]
[374161557,1753233051467,-2977.13,0.00021996,2]
[374161558,1753233051476,-1070.76,0.00021996,2]
[374161559,1753233051485,-460.0,0.00021996,2]
[374161560,1753233051495,-639.35,0.00021996,2]
[374161561,1753233051504,-536.85,0.00021996,2]
[374161562,1753233051514,-675.06,0.00021996,2]
[374161563,1753233051523,-461.71,0.00021996,2]
[374161564,1753233051532,-477.97,0.00021996,2]
[374161565,1753233051542,-206.91,0.00022,7]
[374161566,1753233051551,-315.9,0.00022,7]
[374161567,1753233051560,-10382.69,0.00022,2]
[374161568,1753233051569,-3000.0,0.00022,2]
[374161569,1753233051578,-162.0,0.00022,3]
[374161570,1753233051587,-162.0,0.00022,3]
[374161571,1753233051597,-3000.0,0.0002201,2]
[374161572,1753233051606,-3000.0,0.0002202,2]
[374161573,1753233051616,-585.0,0.0002203,2]
[374161574,1753233051625,-3000.0,0.0002203,2]
[374161575,1753233051637,-2246.89872723,0.00022038,6]
[374161576,1753233051647,-3000.0,0.0002204,2]
[374161577,1753233051656,-3000.0,0.0002205,2]
[374161578,1753233051666,-3801.642,0.00022055,2]
[374161579,1753233051676,-151.0,0.00022055,2]
[374161580,1753233051687,-151.0,0.00022055,2]
[374161581,1753233051696,-151.0,0.00022055,2]
[374161582,1753233051705,-151.0,0.00022055,2]
[374161583,1753233051714,-151.0,0.00022055,2]
[374161584,1753233051724,-151.0,0.00022055,2]
[374161585,1753233051733,-151.0,0.00022055,2]
[374161586,1753233051742,-151.0,0.00022055,2]
[374161587,1753233051752,-151.0,0.00022055,2]
[374161588,1753233051761,-151.0,0.00022055,2]
[374161589,1753233051770,-151.0,0.00022055,2]
[374161590,1753233051779,-151.0,0.00022055,2]
[374161591,1753233051789,-151.0,0.00022055,2]
[374161592,1753233051799,-151.0,0.00022055,2]
[374161593,1753233051808,-151.0,0.00022055,2]
[374161594,1753233051817,-151.0,0.00022055,2]
[374161595,1753233051826,-215.0738,0.00022055,2]
[374161596,1753233051836,-151.0,0.00022055,2]
[374161597,1753233051931,-151.0,0.00022055,2]
[374161598,1753233051942,-151.0,0.00022055,2]
[374161599,1753233051952,-151.0,0.00022055,2]
[374161600,1753233051961,-151.0,0.00022055,2]
[374161601,1753233051970,-151.0,0.00022055,2]
[374161602,1753233051979,-151.0,0.00022055,2]
[374161603,1753233051989,-151.0,0.00022055,2]
[374161604,1753233051999,-151.0,0.00022055,2]
[374161605,1753233052008,-151.0,0.00022055,2]
[374161606,1753233052018,-151.0,0.00022055,2]
[374161607,1753233052027,-151.0,0.00022055,2]
[374161608,1753233052037,-151.0,0.00022055,2]
[374161609,1753233052046,-151.0,0.00022055,2]
[374161610,1753233052055,-151.0,0.00022055,2]
[374161611,1753233052065,-151.0,0.00022055,2]
[374161612,1753233052074,-151.0,0.00022055,2]
[374161613,1753233052083,-3000.0,0.0002206,2]
[374161614,1753233052093,-3000.0,0.0002207,2]
[374161615,1753233052103,-3000.0,0.0002208,2]
[374161616,1753233052112,-3000.0,0.0002209,2]
[374161617,1753233052122,-151.0,0.000221,10]
[374161618,1753233052131,-3000.0,0.000221,2]
[374161619,1753233052141,-3000.0,0.0002211,2]
[374161620,1753233052151,-3185.4436239,0.0002211,2]
[374161621,1753233052160,-3000.0,0.0002212,2]
[374161622,1753233052170,-3000.0,0.0002213,2]
[374161623,1753233052179,-3235.936733,0.0002214,2]
[374161624,1753233052188,-585.0,0.00022199,2]
[374161625,1753233052197,-1220.5,0.00022205,2]
[374161626,1753233052206,-857.45,0.00022266,2]
[374161627,1753233052215,-1007.79,0.00022266,2]
[374161628,1753233052224,-1306.39,0.00022266,2]
[374161629,1753233052233,-1097.55,0.00022266,2]
[374161630,1753233052242,-2089.16,0.00022268,2]
[374161631,1753233052252,-1008.07,0.00022268,2]
[374161632,1753233052261,-774.97,0.00022268,2]
[374161633,1753233052270,-1434.22,0.00022268,2]
[374161634,1753233052279,-1865.85,0.00022268,2]
[374161635,1753233052290,-2977.13,0.0002227,2]
[374161636,1753233052299,-1070.76,0.0002227,2]
[374161637,1753233052308,-460.0,0.0002227,2]
[374161638,1753233052318,-639.35,0.0002227,2]
[374161639,1753233052328,-536.85,0.0002227,2]
[374161640,1753233052337,-675.06,0.0002227,2]
[374161641,1753233052346,-461.71,0.0002227,2]
[374161642,1753233052355,-477.97,0.0002227,2]
[374161643,1753233052365,-585.0,0.00022289,2]
[374161644,1753233052374,-2246.89872723,0.00022314,7]
[374161645,1753233052383,-760.235,0.00022396,5]
[374161646,1753233052392,-585.0,0.00022408,2]
[374161647,1753233052401,-585.0,0.00022454,2]
[374161648,1753233052410,-1494.91,0.00022465,2]
[374161649,1753233052420,-585.0,0.000225,2]
[374161650,1753233052430,-857.45,0.0002254,2]
[374161651,1753233052439,-1007.79,0.0002254,2]
[374161652,1753233052448,-1306.39,0.0002254,2]
[374161653,1753233052457,-1097.55,0.0002254,2]
[374161654,1753233052467,-2089.16,0.00022542,2]
[374161655,1753233052477,-1008.07,0.00022542,2]
[374161656,1753233052487,-774.97,0.00022542,2]
[374161657,1753233052496,-1434.22,0.00022542,2]
[374161658,1753233052505,-1865.85,0.00022542,2]
[374161659,1753233052515,-2977.13,0.00022544,2]
[374161660,1753233052524,-1070.76,0.00022544,2]
[374161661,1753233052533,-460.0,0.00022544,2]
[374161662,1753233052542,-639.35,0.00022544,2]
[374161663,1753233052552,-536.85,0.00022544,2]
[374161664,1753233052561,-675.06,0.00022544,2]
[374161665,1753233052570,-461.71,0.00022544,2]
[374161666,1753233052579,-477.97,0.00022544,2]
[374161667,1753233052588,-585.0,0.00022586,2]
[374161668,1753233052598,-2246.89872723,0.0002259,7]
[374161669,1753233052607,-2782.74,0.000226,7]
[374161670,1753233052617,-585.0,0.00022614,2]
[374161671,1753233052626,-585.0,0.00022633,2]
[374161672,1753233052637,-168.0,0.00022641,2]
[374161673,1753233052647,-154.632875,0.00022759,2]
[374161674,1753233052656,-585.0,0.00022763,2]
[374161675,1753233052665,-857.45,0.00022814,2]
[374161676,1753233052675,-1007.79,0.00022814,2]
[374161677,1753233052685,-1306.39,0.00022814,2]
[374161678,1753233052695,-1097.55,0.00022814,2]
[374161679,1753233052704,-2089.16,0.00022816,2]
[374161680,1753233052714,-1008.07,0.00022816,2]
[374161681,1753233052723,-774.97,0.00022816,2]
[374161682,1753233052732,-1434.22,0.00022816,2]
[374161683,1753233052742,-1865.85,0.00022816,2]
[374161684,1753233052751,-2977.13,0.00022818,2]
[374161685,1753233052761,-1070.76,0.00022818,2]
[374161686,1753233052770,-460.0,0.00022818,2]
[374161687,1753233052779,-639.35,0.00022818,2]
[374161688,1753233052789,-536.85,0.00022818,2]
[374161689,1753233052798,-675.06,0.00022818,2]
[374161690,1753233052808,-461.71,0.00022818,2]
[374161691,1753233052817,-477.97,0.00022818,2]
[374161692,1753233052827,-2246.89872723,0.00022866,8]
[374161693,1753233052837,-151.0,0.000229,8]
[374161694,1753233052847,-162.0,0.00023,4]
[374161695,1753233052856,-2071.61540842,0.00023046,2]
[374161696,1753233052866,-857.61,0.00023088,2]
[374161697,1753233052875,-1007.98,0.00023088,2]
[374161698,1753233052885,-1306.55,0.00023088,2]
[374161699,1753233052894,-1097.78,0.00023088,2]
[374161700,1753233052903,-2089.16000001,0.0002309,2]
[374161701,1753233052913,-1008.24,0.0002309,2]
[374161702,1753233052922,-775.16,0.0002309,2]
[374161703,1753233052932,-1434.27,0.0002309,2]
[374161704,1753233052941,-1865.95195163,0.0002309,2]
[374161705,1753233052951,-2977.13,0.00023092,2]
[374161706,1753233052962,-1070.76,0.00023092,2]
[374161707,1753233052971,-460.0,0.00023092,2]
[374161708,1753233052981,-639.35,0.00023092,2]
[374161709,1753233052990,-536.85,0.00023092,2]
[374161710,1753233053000,-675.06,0.00023092,2]
[374161711,1753233053009,-461.71,0.00023092,2]
[374161712,1753233053019,-477.97,0.00023092,2]
[374161713,1753233053028,-2246.89872723,0.00023141,8]
[374161714,1753233053039,-168.0,0.00023255,2]
[374161715,1753233053049,-2157.0,0.00023258,2]
[374161716,1753233053059,-968.0,0.00023258,2]
[374161717,1753233053068,-2977.13,0.00023366,2]
[374161718,1753233053078,-1070.76,0.00023366,2]
[374161719,1753233053087,-540.61506118,0.00023366,2]
[374161720,1753233053097,-639.35,0.00023366,2]
[374161721,1753233053106,-536.85,0.00023366,2]
[374161722,1753233053116,-675.06,0.00023366,2]
[374161723,1753233053125,-461.71,0.00023366,2]
[374161724,1753233053135,-477.97,0.00023366,2]
[374161725,1753233053145,-10382.69,0.000234,2]
[374161726,1753233053155,-151.0,0.000234,9]
[374161727,1753233053164,-2246.89872723,0.00023417,9]
[374161728,1753233053174,-223.0315306,0.00023424,2]
[374161729,1753233053183,-1054.0,0.00023505,2]
[374161730,1753233053193,-235.9591101,0.00023558,2]
[374161731,1753233053202,-150.27,0.0002357,2]
[374161732,1753233053211,-224.39,0.0002357,2]
[374161733,1753233053221,-315.9,0.000236,7]
[374161734,1753233053230,-151.0,0.000236,8]
[374161735,1753233053239,-151.0,0.000236,9]
[374161736,1753233053248,-1054.0,0.00023617,2]
[374161737,1753233053258,-2977.13,0.0002364,2]
[374161738,1753233053267,-1070.76,0.0002364,2]
[374161739,1753233053276,-639.35,0.0002364,2]
[374161740,1753233053285,-536.85,0.0002364,2]
[374161741,1753233053295,-675.06,0.0002364,2]
[374161742,1753233053303,-461.71,0.0002364,2]
[374161743,1753233053313,-477.97,0.0002364,2]
[374161744,1753233053324,-2246.89872723,0.00023693,9]
[374161745,1753233053333,-325.815,0.00023766,2]
[374161746,1753233053343,-160.0,0.00023846,3]
[374161747,1753233053352,-720.9669013,0.00023854,2]
[374161748,1753233053361,-1066.33173279,0.000239,2]
[374161749,1753233053370,-2977.29,0.00023913,2]
[374161750,1753233053380,-1070.89,0.00023913,2]
[374161751,1753233053389,-639.43,0.00023913,2]
[374161752,1753233053398,-536.95,0.00023913,2]
[374161753,1753233053408,-675.13992272,0.00023913,2]
[374161754,1753233053418,-461.91,0.00023913,2]
[374161755,1753233053429,-477.98821254,0.00023913,2]
[374161756,1753233053438,-154.632875,0.00023945,2]
[374161757,1753233053448,-2246.89872723,0.00023969,10]
[374161758,1753233053457,-206.91,0.00024,7]
[374161759,1753233053467,-358.89996586,0.00024,5]
[374161760,1753233053476,-1830.75,0.00024055,2]
[374161761,1753233053485,-151.0,0.000241,9]
[374161762,1753233053494,-153.0,0.00024106,2]
[374161763,1753233053505,-153.0,0.00024106,2]
[374161764,1753233053514,-153.0,0.00024106,2]
[374161765,1753233053524,-153.0,0.00024106,2]
[374161766,1753233053536,-2246.89872723,0.00024245,10]
[374161767,1753233053545,-500.0,0.00024246,2]
[374161768,1753233053554,-500.0,0.00024276,2]
[374161769,1753233053564,-160.0,0.00024277,4]
[374161770,1753233053573,-500.0,0.00024341,2]
[374161771,1753233053582,-500.0,0.00024356,2]
[374161772,1753233053591,-2782.74,0.000244,7]
[374161773,1753233053601,-151.0,0.000244,8]
[374161774,1753233053610,-151.0,0.000244,7]
[374161775,1753233053619,-429.6101251,0.00024432,2]
[374161776,1753233053629,-429.6101251,0.00024432,2]
[374161777,1753233053642,-429.6101251,0.00024432,2]
[374161778,1753233053652,-429.6101251,0.00024432,2]
[374161779,1753233053661,-429.6101251,0.00024432,2]
[374161780,1753233053672,-1054.0,0.0002452,2]
[374161781,1753233053687,-2246.89872723,0.00024521,11]
[374161782,1753233053696,-164.0,0.000246,5]
[374161783,1753233053705,-164.10544004,0.000246,5]
[374161784,1753233053715,-500.0,0.00024634,2]
[374161785,1753233053724,-167.438408,0.00024636,8]
[374161786,1753233053734,-160.0,0.00024707,5]
[374161787,1753233053743,-500.0,0.00024718,2]